fUST/lending_fUST_20250826
["ID","MTS","AMOUNT","RATE_DAILY","PERIOD"]
[381386474,1756176286834,796.79912845,0.00027362,2]
[381386475,1756176290192,249.9194807,0.00027979,2]
[381386476,1756176292503,181.413258,0.00025778,2]
[381386477,1756176292842,181.413258,0.00026044,2]
[381386478,1756176293174,198.43367458,0.000278,2]
[381386479,1756176303226,10018.0,0.0002685,2]
[381386480,1756176343116,-180.805813,0.0002812,2]
[381386481,1756176343137,-792.12294884,0.00028659,2]
[381386486,1756176385240,240.17916622,0.000199,2]
[381386487,1756176433107,-1350.60858869,0.00028659,2]
[381386488,1756176437129,-366.49874902,0.00028659,2]
[381386620,1756176489222,174.1460127,0.00013699,2]
[381386621,1756176501442,2056.1583356,0.00028049,2]
[381386640,1756176550485,-361.59549015,0.00028659,2]
[381386641,1756176557980,810.92450985,0.00028559,2]
[381386642,1756176558006,778.77941405,0.00028559,2]
[381386643,1756176558162,-3006.53275173,0.00028559,2]
[381386644,1756176566932,240.17916622,0.000199,2]
[381386645,1756176603106,10018.0,0.0002685,2]
[381386694,1756176637904,-300.0,0.00028558,2]
[381386695,1756176637914,-300.0,0.00028558,2]
[381386696,1756176637924,-300.0,0.00028558,2]
[381386697,1756176637934,-1200.0,0.00028558,2]
[381386698,1756176637943,-300.0,0.00028558,2]
[381386699,1756176637954,-1030.85880594,0.00028559,2]
[381386700,1756176637966,-3488.32236836,0.00028559,2]
[381386701,1756176637977,-8782.7837217,0.00028559,2]
[381386702,1756176637987,-1200.0,0.0002916,2]
[381386703,1756176637998,-500.0,0.0002916,2]
[381386705,1756176638007,-500.0,0.0002916,2]
[381386708,1756176638016,-500.0,0.0002916,2]
[381386710,1756176638025,-500.0,0.0002916,2]
[381386711,1756176638035,-54.88555199,0.0002916,2]
[381386713,1756176638047,-271.40006657,0.0002916,2]
[381386715,1756176638056,-500.0,0.0002916,2]
[381386716,1756176638065,-114.56670859,0.0002916,2]
[381386717,1756176638078,-132.33195595,0.0002916,2]
[381386718,1756176638087,-500.0,0.0002916,2]
[381386720,1756176638096,-500.0,0.0002916,2]
[381386721,1756176638106,-500.0,0.0002916,2]
[381386722,1756176638116,-500.0,0.0002916,2]
[381386723,1756176638126,-589.55657267,0.0002916,2]
[381386724,1756176638136,-435.53690178,0.0002916,2]
[381386725,1756176638242,-64.46309822,0.0002916,2]
[381386726,1756176638252,-500.0,0.0002916,2]
[381386727,1756176638263,-500.0,0.0002916,2]
[381386728,1756176638273,-500.0,0.0002916,2]
[381386729,1756176638283,-500.0,0.0002916,2]
[381386730,1756176638291,-500.0,0.0002916,2]
[381386731,1756176638301,-534.06399239,0.0002916,2]
[381386732,1756176638310,-497.94863,0.0002916,2]
[381386733,1756176638320,-500.0,0.0002916,2]
[381386734,1756176638330,-500.0,0.0002916,2]
[381386735,1756176638339,-203.52427939,0.0002916,2]
[381386736,1756176638351,-296.47572061,0.0002916,2]
[381386737,1756176638361,-500.0,0.0002916,2]
[381386738,1756176638370,-598.08424876,0.0002916,2]
[381386739,1756176638381,-500.0,0.0002916,2]
[381386740,1756176638391,-500.0,0.0002916,2]
[381386741,1756176638401,-500.0,0.0002916,2]
[381386742,1756176638411,-526.90708584,0.0002916,2]
[381386743,1756176638420,-500.0,0.0002916,2]
[381386744,1756176638429,-500.0,0.0002916,2]
[381386745,1756176638439,-500.0,0.0002916,2]
[381386746,1756176638448,-500.0,0.0002916,2]
[381386747,1756176638458,-500.0,0.0002916,2]
[381386748,1756176638467,-500.0,0.0002916,2]
[381386749,1756176638477,-500.0,0.0002916,2]
[381386750,1756176638486,-136.02460606,0.0002916,2]
[381386751,1756176638497,-363.97539394,0.0002916,2]
[381386752,1756176638507,-500.0,0.0002916,2]
[381386753,1756176638516,-510.82101666,0.0002916,2]
[381386754,1756176638525,-500.0,0.0002916,2]
[381386755,1756176638534,-500.0,0.0002916,2]
[381386756,1756176638543,-50000.0,0.00029161,2]
[381386757,1756176638553,-508.93315628,0.00029163,2]
[381386758,1756176638562,-183.59952116,0.00029164,15]
[381386759,1756176638571,-156.85,0.00029164,15]
[381386760,1756176638581,-182.45,0.00029164,15]
[381386761,1756176638590,-161.76,0.00029164,15]
[381386762,1756176638599,-156.85,0.00029264,15]
[381386763,1756176638608,-161.76,0.00029264,15]
[381386764,1756176638617,-156.85,0.00029364,15]
[381386765,1756176638626,-161.76,0.00029364,15]
[381386766,1756176638636,-156.85,0.00029464,15]
[381386767,1756176638645,-161.76,0.00029464,15]
[381386768,1756176638654,-156.85,0.00029564,15]
[381386769,1756176638663,-161.77,0.00029564,15]
[381386770,1756176638672,-156.85,0.00029664,15]
[381386771,1756176638682,-160.0,0.00029733,2]
[381386772,1756176638691,-156.86584236,0.00029764,15]
[381386773,1756176638700,-347.50428381,0.00030025,2]
[381386774,1756176638711,-420.0,0.00030825,2]
[381386775,1756176638720,-420.0,0.00030825,2]
[381386776,1756176638729,-420.0,0.00030825,2]
[381386777,1756176638739,-1680.0,0.00030959,2]
[381386778,1756176638748,-158.0,0.00031,120]
[381386779,1756176638757,-168.0,0.00031093,2]
[381386780,1756176638766,-1680.0,0.00031455,3]
[381386781,1756176638775,-457.22219249,0.00031609,2]
[381386782,1756176638787,-343.6040668,0.00031659,2]
[381386783,1756176638796,-457.22219249,0.00031664,2]
[381386784,1756176638805,-879.88,0.00031699,10]
[381386785,1756176638815,-1373.78,0.00031699,10]
[381386786,1756176638824,-16283.9581821,0.00031709,2]
[381386787,1756176638833,-854.75006283,0.00031709,2]
[381386788,1756176638843,-2658.06081858,0.00031718,2]
[381386789,1756176638853,-2658.06081858,0.00031718,2]
[381386790,1756176638872,-500.0,0.00031718,2]
[381386791,1756176638886,-2658.06081858,0.00031718,2]
[381386792,1756176638895,-2658.06081858,0.00031718,2]
[381386793,1756176638905,-456.26538201,0.00031718,2]
[381386794,1756176638915,-2658.06081858,0.00031718,2]
[381386795,1756176638924,-2658.06081858,0.00031718,2]
[381386796,1756176638933,-2658.06081858,0.00031718,2]
[381386797,1756176638943,-2658.06081858,0.00031718,2]
[381386798,1756176638952,-2658.06081858,0.00031718,2]
[381386799,1756176638964,-2658.06081858,0.00031718,2]
[381386800,1756176638973,-2658.06081858,0.00031718,2]
[381386801,1756176638982,-2658.06081858,0.00031718,2]
[381386802,1756176638992,-2658.06081858,0.00031718,2]
[381386803,1756176639001,-2658.06081858,0.00031718,2]
[381386804,1756176639011,-2658.06081858,0.00031718,2]
[381386805,1756176639022,-2658.06081858,0.00031718,2]
[381386806,1756176639033,-2658.06081858,0.00031718,2]
[381386807,1756176639043,-2658.06081858,0.00031718,2]
[381386808,1756176639053,-2658.06081858,0.00031718,2]
[381386809,1756176639063,-4496.48849875,0.00031719,2]
[381386810,1756176639077,-16790.18864008,0.00031719,2]
[381386811,1756176639091,-12800.23324282,0.00031719,2]
[381386812,1756176639100,-173.71914286,0.00031719,2]
[381386813,1756176639111,-457.22219249,0.00031719,2]
[381386814,1756176639124,-39.5965184,0.00031735,2]
[381386815,1756176639136,-881.64487822,0.00031735,2]
[381386816,1756176639147,-3245.37099172,0.00031735,2]
[381386817,1756176639159,-812.15490283,0.00031752,2]
[381386818,1756176639169,-268.59027827,0.00031752,2]
[381386819,1756176639179,-800.0,0.00031775,2]
[381386820,1756176639190,-800.0,0.00031776,2]
[381386821,1756176639202,-151.0,0.000318,17]
[381386822,1756176639215,-202.87830031,0.00031818,10]
[381386823,1756176639225,-4335.7338396,0.00031818,2]
[381386824,1756176639238,-23591.82546562,0.00031819,20]
[381386825,1756176639260,-193298.25475054,0.00031819,20]
[381386826,1756176639271,-390.8491658,0.00031819,20]
[381386827,1756176639284,-374.4860386,0.00031819,20]
[381386840,1756176640003,-652.65885198,0.00031819,20]
[381386841,1756176640014,-350.0842972,0.00031819,20]
[381386846,1756176641190,-0.063369,0.00031819,20]
[381386847,1756176641203,-359.51021566,0.00031819,20]
[381386848,1756176641215,-1590.49922142,0.00031819,20]
[381386852,1756176643100,-339.72560719,0.00031819,20]
[381386885,1756176646524,-500.0,0.0002916,2]
[381386886,1756176646534,-199.0,0.000309,120]
[381386887,1756176646544,-1144.82,0.00031809,10]
[381386888,1756176646553,-9205.60063348,0.00031819,20]
[381386889,1756176646573,-5254.59318187,0.00031819,20]
[381386890,1756176646584,-1238.42982183,0.00031819,20]
[381386891,1756176646595,-1437.1938843,0.00031819,20]
[381386892,1756176646607,-527.3554621,0.00031819,20]
[381386901,1756176649018,81688.49509866,0.0002699,2]
[381386902,1756176649042,3979.95633364,0.0002699,2]
[381386903,1756176739106,240.17916622,0.000199,2]
[381386904,1756176838588,1067.63456539,0.000281,7]
[381386905,1756176915988,240.17916622,0.000199,2]
[381386906,1756176982539,-151.0,0.00030025,14]
[381386907,1756177150653,-317.97847895,0.00030407,2]
[381386908,1756177153554,-187.727687,0.00030407,2]
[381386909,1756177156330,-300.0,0.00030407,2]
[381386910,1756177158545,-296.29301568,0.00030407,2]
[381386911,1756177160265,-370.94480182,0.00030407,2]
[381386912,1756177163154,-179.41789494,0.00030407,2]
[381386913,1756177165338,-290.04328551,0.00030407,2]
[381386918,1756177494552,196.249505,0.00025778,2]
[381386919,1756177542081,-152.51490632,0.0003,120]
[381386920,1756177643088,-138.48509368,0.0003,120]
[381386921,1756177643112,-151.0,0.00030025,14]
[381386922,1756177643132,-180.691535,0.00030373,2]
[381386923,1756177643151,-151.0,0.00030407,2]
[381386924,1756177643171,-177.99416887,0.00030407,2]
[381386925,1756177649124,-329.24483993,0.00030407,2]
[381386926,1756177649149,-45.13872473,0.00030827,2]
[381386945,1756177832401,-151.57066328,0.0003,14]
[381386947,1756177832412,-168.0,0.00030841,2]
[381386949,1756177832422,-168.0,0.00030927,2]
[381386951,1756177832433,-68.94450896,0.00031503,2]
[381386953,1756177832444,-91.65936665,0.00031503,2]
[381386955,1756177832454,-160.6038756,0.00031504,2]
[381386957,1756177832463,-160.6038756,0.00031504,2]
[381386959,1756177832473,-203.31640669,0.00031505,109]
[381386961,1756177832483,-1600.0,0.00031602,3]
[381386963,1756177832493,-1600.0,0.00031603,3]
[381386965,1756177832502,-323.0,0.00031603,3]
[381386967,1756177832515,-380.0,0.00031603,3]
[381386969,1756177832526,-400.0,0.00031603,2]
[381386971,1756177832537,-6279.2272704,0.00031604,2]
[381386974,1756177832558,-2748.44213623,0.00031604,2]
[381386979,1756177832591,-298.65660022,0.00031604,2]
[381387168,1756177838260,-500.0,0.00031603,2]
[381387169,1756177838270,-190.86868499,0.00031603,2]
[381387170,1756177838279,-445.64677963,0.00031603,2]
[381387171,1756177838290,-500.0,0.00031603,2]
[381387172,1756177838299,-263.48,0.00031603,2]
[381387173,1756177838308,-63.97787705,0.00031603,2]
[381387175,1756177838319,-191.27323278,0.00031603,2]
[381387176,1756177838328,-170.45155471,0.00031603,2]
[381387177,1756177838338,-195.27194707,0.00031603,2]
[381387178,1756177838347,-177.56491653,0.00031603,2]
[381387179,1756177838356,-169.65634287,0.00031603,2]
[381387180,1756177838366,-137.35200854,0.00031604,2]
[381387181,1756177838377,-40536.32198461,0.00031604,2]
[381387182,1756177838386,-501.24933736,0.00031673,2]
[381387183,1756177838395,-500.0,0.00031673,5]
[381387184,1756177838404,-819.46909907,0.00031689,2]
[381387185,1756177838415,-466.99753996,0.0003169,2]
[381387186,1756177838424,-160.0,0.0003169,2]
[381387187,1756177838433,-466.99753993,0.00031694,2]
[381387188,1756177838442,-466.99753993,0.00031699,2]
[381387189,1756177838451,-466.99753993,0.00031703,2]
[381387190,1756177838461,-8862.30855519,0.00031707,2]
[381387191,1756177838470,-466.99753993,0.00031707,2]
[381387192,1756177838480,-215.12983727,0.0003171,30]
[381387193,1756177838489,-1073.28675198,0.00031718,2]
[381387194,1756177838498,-435.21395766,0.00031718,2]
[381387195,1756177838507,-800.0,0.00031741,2]
[381387196,1756177838520,-500.0,0.00031773,5]
[381387197,1756177838530,-500.0,0.00031773,5]
[381387198,1756177838539,-504.17463862,0.00031773,5]
[381387199,1756177838548,-607.59766601,0.00031776,2]
[381387200,1756177838559,-500.0,0.00031776,2]
[381387201,1756177838568,-151.0,0.00031776,2]
[381387202,1756177838578,-500.0,0.00031776,2]
[381387203,1756177838587,-500.0,0.00031776,2]
[381387204,1756177838598,-300.0,0.00031776,2]
[381387205,1756177838607,-500.0,0.00031776,2]
[381387206,1756177838617,-151.0,0.00031776,2]
[381387207,1756177838627,-300.0,0.00031776,2]
[381387208,1756177838637,-500.0,0.00031776,2]
[381387209,1756177838648,-300.0,0.00031776,2]
[381387210,1756177838657,-300.0,0.00031776,2]
[381387211,1756177838666,-151.0,0.00031776,2]
[381387212,1756177838677,-300.0,0.00031776,2]
[381387213,1756177838686,-500.0,0.00031776,2]
[381387214,1756177838696,-300.0,0.00031776,2]
[381387215,1756177838705,-151.0,0.00031776,2]
[381387216,1756177838716,-300.0,0.00031776,2]
[381387217,1756177838725,-300.0,0.00031776,2]
[381387218,1756177838734,-500.0,0.00031776,2]
[381387219,1756177838743,-249.89280719,0.00031776,2]
[381387220,1756177838752,-300.0,0.00031776,2]
[381387221,1756177838762,-300.0,0.00031776,2]
[381387222,1756177838771,-500.0,0.00031776,2]
[381387223,1756177838780,-194.72792766,0.00031776,2]
[381387224,1756177838794,-300.0,0.00031776,2]
[381387225,1756177838804,-300.0,0.00031776,2]
[381387226,1756177838813,-500.0,0.00031776,2]
[381387227,1756177838823,-306.28208321,0.00031776,2]
[381387228,1756177838832,-222.40877249,0.00031776,2]
[381387229,1756177838842,-500.0,0.00031776,2]
[381387230,1756177838851,-151.0,0.00031776,2]
[381387231,1756177838861,-500.0,0.00031776,2]
[381387232,1756177838871,-151.0,0.00031776,2]
[381387233,1756177838881,-500.0,0.00031776,2]
[381387234,1756177838890,-153.78158982,0.00031776,2]
[381387235,1756177838899,-500.0,0.00031776,2]
[381387236,1756177838909,-151.70994571,0.00031776,2]
[381387237,1756177838919,-151.0,0.00031776,2]
[381387238,1756177838928,-151.0,0.00031776,2]
[381387239,1756177838937,-151.0,0.00031776,2]
[381387240,1756177838946,-151.0,0.00031776,2]
[381387241,1756177838955,-151.0,0.00031776,2]
[381387242,1756177838965,-151.0,0.00031776,2]
[381387243,1756177838974,-151.0,0.00031776,2]
[381387244,1756177838983,-250.0,0.00031776,2]
[381387245,1756177838993,-231.56977879,0.00031776,2]
[381387246,1756177839002,-250.0,0.00031776,2]
[381387247,1756177839011,-250.0,0.00031776,2]
[381387248,1756177839020,-250.0,0.00031776,2]
[381387249,1756177839029,-250.0,0.00031776,2]
[381387250,1756177839039,-250.0,0.00031776,2]
[381387251,1756177839048,-250.0,0.00031776,2]
[381387252,1756177839057,-250.0,0.00031776,2]
[381387253,1756177839066,-250.0,0.00031776,2]
[381387254,1756177839075,-18078.4583077,0.00031777,2]
[381387255,1756177839086,-800.0,0.00031781,2]
[381387256,1756177839095,-4310.649149,0.00031782,2]
[381387257,1756177839104,-2153.02926305,0.00031782,2]
[381387258,1756177839113,-2153.02926305,0.00031782,2]
[381387259,1756177839123,-2153.02926305,0.00031782,2]
[381387260,1756177839132,-500.0,0.00031782,2]
[381387261,1756177839143,-2153.02926305,0.00031782,2]
[381387262,1756177839153,-2153.02926305,0.00031782,2]
[381387263,1756177839164,-2153.02926305,0.00031782,2]
[381387264,1756177839176,-2153.02926305,0.00031782,2]
[381387265,1756177839186,-2153.02926305,0.00031782,2]
[381387266,1756177839195,-2153.02926305,0.00031782,2]
[381387267,1756177839207,-246.87853596,0.00031782,2]
[381387268,1756177839217,-2153.02926305,0.00031782,2]
[381387269,1756177839226,-2153.02926305,0.00031782,2]
[381387270,1756177839236,-2153.02926305,0.00031782,2]
[381387271,1756177839245,-2153.02926305,0.00031782,2]
[381387272,1756177839254,-2153.02926305,0.00031782,2]
[381387273,1756177839264,-2153.02926305,0.00031782,2]
[381387274,1756177839275,-2153.02926305,0.00031782,2]
[381387275,1756177839284,-2153.02926305,0.00031782,2]
[381387276,1756177839295,-2153.02926305,0.00031782,2]
[381387277,1756177839304,-13931.3604416,0.00031783,2]
[381387278,1756177839313,-18078.4583077,0.00031785,2]
[381387279,1756177839322,-559.45,0.00031787,3]
[381387280,1756177839330,-279.73,0.00031787,3]
[381387281,1756177839339,-839.2,0.00031787,3]
[381387282,1756177839349,-500.0,0.0003179,2]
[381387283,1756177839358,-800.0,0.00031794,2]
[381387284,1756177839367,-151.0,0.000318,14]
[381387285,1756177839376,-108133.27681056,0.00031807,20]
[381387286,1756177839388,-423834.16814712,0.00031807,20]
[381387287,1756177839428,-425.055,0.00031807,20]
[381387298,1756177840379,-0.02533975,0.00031776,2]
[381387323,1756177926340,592.0,0.00027385,2]
[381387370,1756178121916,-172.0,0.0003,14]
[381387371,1756178404834,645.0,0.000281,7]
[381387375,1756178494339,-231.48105548,0.0003025,90]
[381387376,1756178496958,-260.70047452,0.0003025,90]
[381387377,1756178499119,-199.0,0.0003015,90]
[381387378,1756178502149,-199.0,0.0003015,90]
[381387379,1756178610146,-341.29952548,0.00030462,2]
[381387380,1756178611880,-471.08716923,0.00030462,2]
[381387381,1756178613641,-1000.0,0.00030462,2]
[381387382,1756178615254,-281.01846919,0.00030462,2]
[381387383,1756178623799,159.0,0.000281,7]
[381387385,1756178636673,159.0,0.000281,14]
[381387386,1756178641833,159.0,0.000281,15]
[381387387,1756178651030,159.0,0.000281,13]
[381387388,1756178666108,5000.0,0.000281,2]
[381387389,1756178681434,4364.01,0.000281,2]
[381387390,1756178681459,635.99,0.000281,2]
[381387392,1756178697056,5000.0,0.000281,2]
[381387393,1756178697086,161.08727451,0.000281,16]
[381387394,1756178713708,4202.93272549,0.000281,2]
[381387395,1756178713769,797.06727451,0.000281,2]
[381387396,1756178716173,-190.92246214,0.00030423,26]
[381387397,1756178717867,-262.76099384,0.00030423,26]
[381387398,1756178723588,161.08727451,0.000281,2]
[381387399,1756178729215,5000.0,0.000281,2]
[381387400,1756178730104,-182.61459,0.00030791,2]
[381387401,1756178730128,-168.0,0.00030818,2]
[381387402,1756178730152,-168.0,0.00030891,2]
[381387403,1756178730173,-500.0,0.000309,5]
[381387404,1756178730194,-500.0,0.000309,30]
[381387405,1756178730215,-500.0,0.000309,5]
[381387406,1756178730236,-500.0,0.000309,30]
[381387407,1756178730257,-284.16433675,0.00030947,2]
[381387408,1756178730279,-7.04476066,0.00031266,2]
[381387409,1756178745475,159.0,0.000281,8]
[381387410,1756178746282,3466.25926183,0.000281,2]
[381387412,1756178770515,158.65889929,0.000281,6]
[381387414,1756178773745,257.93728986,0.000281,2]
[381387415,1756178773770,10000.01,0.000281,2]
[381387416,1756178773798,8352.27271014,0.000281,2]
[381387417,1756178810077,-500.0,0.000309,5]
[381387418,1756178810099,-160.95523934,0.00031266,2]
[381387419,1756178810119,-151.0,0.000316,18]
[381387420,1756178810148,-1469.69592378,0.00031629,2]
[381387421,1756178810169,-199.0,0.00031707,30]
[381387422,1756178810190,-400.0,0.00031711,2]
[381387423,1756178810211,-404.62218748,0.00031712,2]
[381387424,1756178810233,-500.0,0.00031712,2]
[381387425,1756178810255,-500.0,0.00031712,2]
[381387426,1756178810289,-35.19464969,0.00031712,2]
[381387427,1756178810326,416.51649335,0.000199,2]
[381387428,1756178810455,416.51649323,0.00023353,2]
[381387429,1756178810595,416.51649323,0.0002508,2]
[381387430,1756178811058,398.18781005,0.00026806,6]
[381387431,1756178811085,18.32868318,0.00026806,6]
[381387432,1756178811145,-290.4711391,0.00028533,10]
[381387433,1756178819937,-126.04535413,0.00028533,10]
[381387434,1756178819965,-416.51649323,0.00030259,13]
[381387435,1756178827119,-400.0,0.00031711,2]
[381387436,1756178827140,-452.70090827,0.00031711,3]
[381387437,1756178834086,-1147.29909173,0.00031711,3]
[381387438,1756178834108,-399.80206775,0.00031712,2]
[381387440,1756178921507,9981.68131682,0.00026,30]
[381387441,1756178921532,1317.21049986,0.00026,30]
[381387442,1756178927976,161.0,0.00026,5]
[381387445,1756178983925,333.2131947,0.000199,2]
[381387446,1756178984024,333.21319458,0.00021627,2]
[381387447,1756178984124,333.21319458,0.00023353,2]
[381387448,1756178984228,333.21319458,0.0002508,2]
[381387449,1756178984394,333.21319458,0.00026806,6]
[381387450,1756178984451,333.21319458,0.00028533,10]
[381387451,1756178987899,-305.43815264,0.00030259,13]
[381387499,1756179038577,-27.77504194,0.00030259,13]
[381387500,1756179038587,-1285.98393329,0.00031639,2]
[381387501,1756179038596,-306.0,0.00031711,3]
[381387502,1756179038606,-400.0,0.00031711,3]
[381387503,1756179038615,-400.0,0.00031711,2]
[381387504,1756179038624,-1600.0,0.00031711,3]
[381387505,1756179038634,-8715.26676914,0.00031712,2]
[381387506,1756179038643,-800.0,0.00031729,2]
[381387507,1756179038653,-500.0,0.00031738,2]
[381387508,1756179038663,-500.0,0.00031738,2]
[381387509,1756179038672,-537.33724706,0.00031738,2]
[381387510,1756179038682,-30951.56965599,0.00031739,2]
[381387511,1756179038692,-800.0,0.00031739,2]
[381387512,1756179038701,-233.4167629,0.00031773,5]
[381387513,1756179038711,-501.65704101,0.00031773,5]
[381387514,1756179038720,-626.89555106,0.00031773,2]
[381387515,1756179038729,-500.0,0.00031773,5]
[381387516,1756179038739,-398.5458535,0.00031776,2]
[381387517,1756179038748,-333.77953503,0.00031776,2]
[381387518,1756179038759,-699.98317863,0.00031793,2]
[381387519,1756179038768,-500.0,0.00031793,2]
[381387520,1756179038779,-522.51065331,0.00031793,2]
[381387521,1756179038788,-194.72792766,0.00031793,2]
[381387522,1756179038797,-151.0,0.00031794,2]
[381387523,1756179038807,-21169.6260072,0.000318,2]
[381387524,1756179038817,-151.0,0.000318,13]
[381387525,1756179038827,-151.0,0.000318,11]
[381387526,1756179038837,-151.0,0.000318,16]
[381387527,1756179038849,-500.0,0.00031802,20]
[381387528,1756179038859,-500.0,0.00031802,20]
[381387529,1756179038869,-151.0,0.00031802,20]
[381387530,1756179038878,-151.0,0.00031802,20]
[381387531,1756179038887,-151.0,0.00031802,20]
[381387532,1756179038898,-151.0,0.00031802,20]
[381387533,1756179038908,-151.0,0.00031802,20]
[381387534,1756179038918,-500.0,0.00031802,20]
[381387535,1756179038927,-500.0,0.00031802,20]
[381387536,1756179038937,-500.0,0.00031802,20]
[381387537,1756179038946,-500.0,0.00031802,20]
[381387538,1756179038955,-151.0,0.00031802,20]
[381387539,1756179038964,-1340.0,0.00031802,20]
[381387540,1756179038974,-226.03137939,0.00031802,20]
[381387541,1756179038984,-278.09310459,0.00031802,20]
[381387542,1756179038996,-154.74743684,0.00031802,20]
[381387543,1756179039005,-500.0,0.00031802,20]
[381387544,1756179039015,-500.0,0.00031802,20]
[381387545,1756179039025,-151.0,0.00031802,20]
[381387546,1756179039034,-500.0,0.00031802,20]
[381387547,1756179039043,-151.0,0.00031802,20]
[381387548,1756179039053,-151.0,0.00031802,20]
[381387549,1756179039063,-500.0,0.00031802,10]
[381387550,1756179039072,-500.0,0.00031802,10]
[381387551,1756179039081,-151.0,0.00031802,10]
[381387552,1756179039090,-500.0,0.00031802,10]
[381387553,1756179039100,-500.0,0.00031802,10]
[381387554,1756179039109,-151.0,0.00031802,10]
[381387555,1756179039118,-151.41240251,0.00031802,10]
[381387556,1756179039128,-500.0,0.00031802,10]
[381387557,1756179039138,-151.0,0.00031802,10]
[381387558,1756179039147,-151.0,0.00031802,10]
[381387559,1756179039157,-151.0,0.00031802,10]
[381387560,1756179039166,-500.0,0.00031802,10]
[381387561,1756179039175,-151.0,0.00031802,10]
[381387562,1756179039185,-500.0,0.00031802,10]
[381387563,1756179039195,-151.0,0.00031802,2]
[381387564,1756179039204,-151.54982774,0.00031802,10]
[381387565,1756179039214,-500.0,0.00031802,2]
[381387566,1756179039224,-151.0,0.00031802,2]
[381387567,1756179039234,-151.0,0.00031802,2]
[381387568,1756179039244,-500.0,0.00031802,10]
[381387569,1756179039253,-500.0,0.00031802,10]
[381387570,1756179039263,-151.0,0.00031802,10]
[381387571,1756179039272,-449.8032535,0.00031803,2]
[381387572,1756179039281,-465.05,0.00031804,3]
[381387573,1756179039291,-232.53,0.00031804,3]
[381387574,1756179039300,-697.59,0.00031804,3]
[381387575,1756179039309,-4492.38523842,0.00031805,4]
[381387576,1756179039320,-152.531127,0.00031807,20]
[381387577,1756179039329,-1147.56459721,0.00031808,2]
[381387578,1756179039339,-577.05991315,0.00031808,2]
[381387579,1756179039349,-1147.56459721,0.00031808,2]
[381387580,1756179039359,-1147.56459721,0.00031808,2]
[381387581,1756179039367,-1147.56459721,0.00031808,2]
[381387582,1756179039377,-1147.56459721,0.00031808,2]
[381387583,1756179039388,-1147.56459721,0.00031808,2]
[381387584,1756179039398,-1147.56459721,0.00031808,2]
[381387585,1756179039408,-1147.56459721,0.00031808,2]
[381387586,1756179039417,-1147.56459721,0.00031808,2]
[381387588,1756179039428,-1147.56459721,0.00031808,2]
[381387590,1756179039437,-1147.56459721,0.00031808,2]
[381387591,1756179039446,-1147.56459721,0.00031808,2]
[381387593,1756179039455,-1147.56459721,0.00031808,2]
[381387595,1756179039465,-1147.56459721,0.00031808,2]
[381387597,1756179039475,-1147.56459721,0.00031808,2]
[381387598,1756179039484,-1147.56459721,0.00031808,2]
[381387599,1756179039493,-1147.56459721,0.00031808,2]
[381387600,1756179039503,-1147.56459721,0.00031808,2]
[381387601,1756179039513,-2679.44449925,0.00031811,2]
[381387602,1756179039522,-111467.32483223,0.00031812,20]
[381387603,1756179039532,-5980.15968823,0.00031812,7]
[381387604,1756179039542,-858.77630464,0.00031812,30]
[381387605,1756179039552,-49857.30073436,0.00031812,2]
[381387607,1756179039561,-1189.90614119,0.00031812,2]
[381387608,1756179039570,-882.10293333,0.00031812,30]
[381387609,1756179039580,-579.06340537,0.00031812,5]
[381387610,1756179039589,-6409.8759588,0.00031812,30]
[381387611,1756179039598,-18051.69426625,0.00031812,2]
[381387612,1756179039607,-150.0,0.00031812,30]
[381387613,1756179039616,-697184.1333552,0.00031812,20]